bitfinex/quotes_ETHUSD_20250630
["timestamp","ask_amount","ask_price","bid_price","bid_amount"]
[1751270543968,4.75630527,2481.4,2480.8,3.79877168]
[1751270544299,3.22412349,2481.3,2480.9,0.37329284]
[1751270544625,3.22425579,2481.2,2481.0,0.37329284]
[1751270544910,3.22425579,2481.2,2481.1,0.37329284]
[1751270545127,3.42505579,2481.2,2481.1,0.37329284]
[1751270545471,3.22450624,2481.0,2480.8,0.2008]
[1751270546603,3.22463622,2480.9,2480.7,0.02]
[1751270547005,3.2247662,2480.8,2480.7,0.02]
[1751270547469,3.22470977,2480.9,2480.7,0.02]
[1751270547801,3.224651,2480.9,2480.7,0.02]
[1751270548710,3.42535746,2481.0,2480.7,0.02]
[1751270549008,3.22468015,2480.9,2480.7,0.02]
[1751270550200,1.8738,2481.0,2480.7,0.02]
[1751270550706,5.0983145,2481.0,2480.7,0.02]
[1751270551070,3.2247662,2480.8,2480.7,0.02]
[1751270551807,3.22470049,2480.9,2480.7,0.02]
[1751270552002,3.2247662,2480.8,2480.7,0.02]
[1751270553977,4.0434662,2480.8,2480.7,0.02]
[1751270554394,10.28284878,2480.8,2480.7,0.02]
[1751270554613,21.80089742,2480.8,2480.7,0.02]
[1751270555016,28.32589742,2480.8,2480.7,0.02]
[1751270559486,22.08651484,2480.8,2480.7,0.02]
[1751270561092,28.32589742,2480.8,2480.7,0.02]
[1751270562091,28.87589742,2480.8,2480.7,0.02]
[1751270564409,29.17569181,2480.8,2480.7,0.02]
[1751270565236,30.30269181,2480.8,2480.7,0.02]
[1751270570454,30.30369181,2480.8,2480.7,0.02]
[1751270571547,30.00389742,2480.8,2480.7,0.02]
[1751270572050,30.55389742,2480.8,2480.7,0.02]
[1751270572918,30.85326722,2480.8,2480.7,0.02]
[1751270574555,31.81585429,2480.8,2480.7,0.02]
[1751270575431,4.04938624,2480.4,2480.3,0.02]
[1751270575730,27.54322503,2480.4,2480.3,0.02]
[1751270580535,27.54322503,2480.4,2480.2,0.02]
[1751270580536,13.97621628,2480.3,2480.2,0.02]
[1751270580722,14.22651628,2480.3,2480.2,0.02]
[1751270581153,15.90251628,2480.3,2480.2,0.02]
[1751270581363,19.91584052,2480.3,2480.2,0.02]
[1751270584554,20.88042818,2480.3,2480.2,0.02]
[1751270585566,21.43042818,2480.3,2480.2,0.02]
[1751270587041,13.77554632,2480.2,2480.1,0.02]
[1751270587366,31.34375314,2480.2,2480.1,0.02]
[1751270587786,32.30818382,2480.2,2480.1,0.02]
[1751270588276,31.34375314,2480.2,2480.1,0.02]
[1751270588505,32.30815601,2480.2,2480.1,0.02]
[1751270588836,14.03377638,2480.1,2480.0,0.02]
[1751270589033,18.04710062,2480.1,2480.0,0.02]
[1751270590071,27.21555948,2480.1,2480.0,0.02]
[1751270591252,27.76555948,2480.1,2480.0,0.02]
[1751270592547,27.76555948,2480.1,2479.5,0.02]
[1751270592548,13.22632682,2479.6,2479.5,0.02]
[1751270592753,28.4462094,2479.6,2479.5,0.02]
[1751270593083,31.93605667,2479.6,2479.5,0.02]
[1751270593550,32.48605667,2479.6,2479.5,0.02]
[1751270594650,33.45014827,2479.6,2479.5,0.02]
[1751270595756,33.46214827,2479.6,2479.5,0.02]
[1751270595962,32.91214827,2479.6,2479.5,0.02]
[1751270596183,31.94805667,2479.6,2479.5,0.02]
[1751270598881,32.49805667,2479.6,2479.5,0.02]
[1751270600295,32.50105667,2479.6,2479.5,0.02]
[1751270600622,14.54801721,2479.3,2479.2,0.02]
[1751270600762,40.207022,2479.3,2479.2,0.02]
[1751270601664,33.117022,2479.3,2479.2,0.02]
[1751270601866,41.334022,2479.3,2479.2,0.02]
[1751270602292,41.884022,2479.3,2479.2,0.02]
[1751270603667,42.191898,2479.3,2479.2,0.02]
[1751270609674,33.117022,2479.3,2479.2,0.02]
[1751270609908,40.561722,2479.3,2479.2,0.02]
[1751270670965,0.01,2482.5,2482.4,43.77268772]
[1751270672375,0.01,2482.5,2482.4,44.30417006]
[1751270673363,0.07619662,2483.2,2483.1,33.77177922]
[1751270673586,0.07619662,2483.2,2483.1,43.77177922]
[1751270673965,0.07619662,2483.2,2483.1,13.77177922]
[1751270674174,0.01554305,2483.2,2483.1,43.77177922]
[1751270675874,0.01554305,2483.2,2483.1,44.30326156]
[1751270676087,0.01554305,2483.2,2483.1,43.77177922]
[1751270677069,0.01554305,2483.2,2483.1,41.75033522]
[1751270677887,0.01554305,2483.2,2483.1,41.19353522]
[1751270678055,0.01554305,2483.2,2483.1,43.77177922]
[1751270679480,0.01554305,2483.2,2483.1,38.38324922]
[1751270679784,0.01554305,2483.2,2483.1,36.17066722]
[1751270679981,0.01554305,2483.2,2483.1,35.80839422]
[1751270680155,0.01554305,2483.2,2483.1,13.77177922]
[1751270680355,0.01554305,2483.2,2483.1,29.09061522]
[1751270680578,0.01554305,2483.2,2483.1,19.09061522]
[1751270680773,0.01554305,2483.2,2483.1,29.09061522]
[1751270680974,0.01554305,2483.2,2483.1,25.86183122]
[1751270681174,0.01554305,2483.2,2483.1,15.22197922]
[1751270681760,0.01554305,2483.2,2483.1,15.77197922]
[1751270682081,0.01554305,2483.2,2483.1,15.22197922]
[1751270682286,0.01554305,2483.2,2483.1,37.76738322]
[1751270682492,0.01554305,2483.2,2483.1,38.31738322]
[1751270683095,0.02554305,2483.2,2483.1,38.31738322]
[1751270683394,0.02554305,2483.2,2483.1,43.77177922]
[1751270687162,0.02554305,2483.2,2483.1,20.09345722]
[1751270687389,0.02554305,2483.2,2483.1,17.04950622]
[1751270687590,0.02554305,2483.2,2483.1,16.76935222]
[1751270688196,0.02554305,2483.2,2483.1,16.40712922]
[1751270688791,0.02554305,2483.2,2483.1,13.22177922]
[1751270689197,0.02554305,2483.2,2483.1,15.46314622]
[1751270689368,0.02554305,2483.2,2483.1,16.46014622]
[1751270689768,0.02554305,2483.2,2483.1,15.26400122]
[1751270690370,0.02554305,2483.2,2483.1,16.26100122]
[1751270691400,0.02554305,2483.2,2483.1,16.74806322]
[1751270692297,0.02554305,2483.2,2483.1,13.77177922]
[1751270692505,0.02554305,2483.2,2483.1,16.65968222]
[1751270693096,0.02554305,2483.2,2483.1,13.77177922]
[1751270693302,0.02554305,2483.2,2483.1,43.09041722]
[1751270694288,0.02554305,2483.2,2483.1,43.77177922]
[1751270697307,0.02554305,2483.2,2483.1,16.50968222]
[1751270697614,3.98677922,2483.1,2483.0,0.02]
[1751270697905,3.22225952,2482.8,2482.1,5.59855352]
[1751270698113,3.22241891,2482.7,2482.1,10.02]
[1751270698311,0.8331,2482.6,2482.3,3.22272137]
[1751270700387,0.8331,2482.6,2482.4,3.22267456]
[1751270700585,0.8331,2482.6,2482.3,3.22277244]
[1751270700901,0.8331,2482.6,2482.2,3.22289349]
[1751270701113,0.8331,2482.6,2482.3,3.22279731]
[1751270701310,0.8331,2482.6,2482.4,3.22267154]
[1751270701482,0.8331,2482.6,2482.5,3.2225579]
[1751270701683,0.8331,2482.6,2482.4,3.2226492]
[1751270702791,0.8331,2482.6,2482.3,3.22276749]
[1751270702985,0.8331,2482.6,2482.1,13.24300503]
[1751270703191,0.7793,2482.5,2482.1,0.02]
[1751270703414,0.8016,2482.4,2482.1,0.02]
[1751270705692,0.8016,2482.4,2482.2,3.22282823]
[1751270705892,0.8016,2482.4,2482.1,0.02]
[1751270706118,0.8016,2482.4,2482.1,3.24301965]
[1751270707730,0.8016,2482.4,2482.1,0.02]
[1751270708022,3.22272486,2482.4,2482.1,0.02]
[1751270708222,0.8,2482.3,2482.1,0.02]
[1751270709515,0.8,2482.3,2482.1,3.24300037]
[1751270709878,0.8,2482.3,2482.2,3.22294738]
[1751270715031,0.8,2482.3,2482.1,0.02]
[1751270715731,1.20225835,2482.3,2482.1,0.02]
[1751270715927,3.99474738,2482.2,2482.1,0.02]
[1751270719928,3.97527723,2482.1,2482.0,0.02]
[1751270721039,3.22362627,2481.7,2481.4,0.02]
[1751270721245,0.7891,2481.5,2481.4,0.02]
[1751270730853,0.7858,2481.9,2481.4,3.24395986]
[1751270731062,0.7858,2481.9,2481.4,3.24395593]
[1751270731216,0.7858,2481.9,2481.6,3.22371708]
[1751270731957,0.7858,2481.9,2481.5,3.22380465]
[1751270732261,0.7858,2481.9,2481.4,3.24395593]
[1751270732262,0.7639,2481.7,2481.4,3.24392187]
[1751270733680,0.7639,2481.7,2481.5,3.22385436]
[1751270733832,0.7639,2481.7,2481.6,3.22372662]
[1751270735055,0.7672,2482.1,2481.7,3.22359496]
[1751270735433,0.7672,2482.1,2481.9,3.22323729]
[1751270735638,3.98123639,2482.6,2482.1,3.22304369]
[1751270735965,0.77355317,2482.5,2482.1,3.22304369]
[1751270736966,0.77355317,2482.5,2482.2,3.2229371]
[1751270737140,0.77355317,2482.5,2482.3,3.22280493]
[1751270737341,0.37542953,2482.5,2482.3,3.22280493]
[1751270737540,0.7588,2482.6,2482.3,3.22280493]
[1751270739071,0.7588,2482.6,2482.4,3.22262674]
[1751270739258,0.7588,2482.6,2482.3,3.2227783]
[1751270740349,10.0,2482.9,2482.5,3.2225579]
[1751270740644,0.8026,2482.8,2482.5,3.2225579]
[1751270741045,0.8026,2482.8,2482.7,3.2222983]
[1751270741468,0.8026,2482.8,2482.6,3.22237548]
[1751270741669,0.01,2483.0,2482.7,3.2222983]
[1751270741968,0.01,2483.0,2482.9,3.22203874]
[1751270742163,0.01,2483.0,2482.8,3.22210622]
[1751270742765,0.01,2483.0,2482.7,3.22225538]
[1751270743168,0.01,2483.0,2482.4,3.2226758]
[1751270743359,0.01,2483.0,2482.8,3.22207927]
[1751270743560,0.01,2483.0,2482.6,3.22233587]
[1751270743561,0.01,2483.0,2482.7,3.22224015]
[1751270743867,0.01,2483.0,2482.6,3.22235975]
[1751270744368,0.7873,2482.9,2482.6,3.22235975]
[1751270746675,0.7873,2482.9,2482.3,0.55]
[1751270746991,0.01,2483.0,2482.3,0.55]
[1751270746992,0.01,2483.0,2482.9,3.22203874]
[1751270747862,0.01,2483.0,2482.9,13.22203874]
[1751270748265,0.01,2483.0,2482.9,22.12796874]
[1751270748448,0.01,2483.0,2482.9,13.22203874]
[1751270748959,0.01,2483.0,2482.9,24.39859874]
[1751270749164,0.01,2483.0,2482.9,43.77203874]
[1751270749369,0.01,2483.0,2482.9,35.15384474]
[1751270749682,0.01,2483.0,2482.9,33.54333174]
[1751270749870,0.01,2483.0,2482.9,33.74196621]
[1751270750268,0.01,2483.0,2482.9,37.37350421]
[1751270751294,0.01,2483.0,2482.9,43.97067321]
[1751270751480,0.02554305,2483.2,2483.1,26.23355222]
[1751270751799,0.02554305,2483.2,2483.1,26.05148222]
[1751270752287,0.02554305,2483.2,2483.1,27.18861122]
[1751270752594,0.02554305,2483.2,2483.1,31.14201122]
[1751270752762,0.02554305,2483.2,2483.1,13.22177922]
[1751270753263,0.02554305,2483.2,2483.1,36.93085622]
[1751270753697,0.02554305,2483.2,2483.1,3.22177922]
[1751270753873,0.02554305,2483.2,2483.1,9.79439222]
[1751270755270,0.02554305,2483.2,2483.1,3.22177922]
[1751270756065,0.82834305,2483.2,2483.1,3.22177922]
[1751270756264,0.82834305,2483.2,2483.0,3.22189359]
[1751270756465,0.82834305,2483.2,2482.3,5.905614]
[1751270756666,0.82834305,2483.2,2482.4,3.22268772]
[1751270756871,0.82834305,2483.2,2482.7,3.22222711]
[1751270757394,0.7508,2483.1,2482.2,3.22292534]
[1751270757556,0.7508,2483.1,2482.9,3.22200985]
[1751270757756,0.7508,2483.1,2482.8,3.22210954]
[1751270758856,0.7508,2483.1,2482.7,3.22224643]
[1751270759105,0.7508,2483.1,2482.7,3.2222983]
[1751270760167,0.7508,2483.1,2482.8,3.22214965]
[1751270760876,1.709,2483.0,2482.8,3.22214965]
[1751270761267,1.709,2483.0,2482.9,3.22203874]
[1751270761467,0.7508,2483.1,2483.0,3.22190898]
[1751270761672,0.02554305,2483.2,2483.1,3.22177922]
[1751270761869,0.02554305,2483.2,2482.2,10.0]
[1751270762074,0.02554305,2483.2,2483.1,3.22177922]
[1751270762696,0.02554305,2483.2,2482.9,3.22200205]
[1751270762697,0.02554305,2483.2,2483.0,3.2218584]
[1751270762892,0.7701,2483.1,2482.8,3.22209639]
[1751270763598,0.7701,2483.1,2482.5,4.76]
[1751270763903,0.7701,2483.1,2482.8,3.22216213]
[1751270764058,0.7701,2483.1,2482.4,0.55]
[1751270764266,0.02554305,2483.2,2483.1,3.22177922]
[1751270764575,0.02554305,2483.2,2482.8,3.22210896]
[1751270764793,0.6001794,2483.2,2482.8,3.22210896]
[1751270764976,0.02554305,2483.2,2482.8,3.22210896]
[1751270765507,0.8277,2483.1,2482.8,3.22210896]
[1751270765675,0.8277,2483.1,2482.7,3.22223626]
[1751270766861,0.8277,2483.1,2482.7,3.2222363]
[1751270770067,0.8277,2483.1,2482.7,3.22227915]
[1751270770288,2.5397,2483.1,2482.8,3.22216851]
[1751270770704,2.5397,2483.1,2482.7,3.22225012]
[1751270770902,3.11839188,2483.1,2482.7,3.22225012]
[1751270771105,3.11839188,2483.1,2482.6,3.22237006]
[1751270771403,3.11839188,2483.1,2482.7,3.2222792]
[1751270773476,2.5397,2483.1,2482.8,3.22204355]
[1751270773807,2.5397,2483.1,2482.7,3.22221126]
[1751270774305,0.8277,2483.1,2482.7,3.22221126]
[1751270774504,2.5397,2483.1,2482.7,3.22221126]
[1751270774673,2.5397,2483.1,2482.6,3.22236793]
[1751270774877,5.76148062,2483.1,2482.6,3.22236793]
[1751270775074,2.5397,2483.1,2482.7,3.22224855]
[1751270776709,5.76149582,2483.1,2482.6,3.22237806]
[1751270776907,6.34019199,2483.1,2482.6,3.22237806]
[1751270777113,3.11839617,2483.1,2482.7,3.22229357]
[1751270779514,1.712,2483.0,2482.7,3.22229357]
[1751270781510,0.8277,2483.1,2482.6,3.22239616]
[1751270781715,2.5597,2483.1,2482.7,3.22223606]
[1751270782320,0.7916,2483.0,2481.7,1.712]
[1751270782493,0.7916,2482.5,2481.7,1.712]
[1751270782686,0.7916,2482.5,2482.0,3.22308862]
[1751270782883,3.22277859,2482.4,2481.9,3.22330038]
[1751270783114,0.7916,2482.3,2481.4,0.02]
[1751270783429,4.01460164,2482.2,2481.7,3.22353208]
[1751270783914,0.7916,2482.2,2481.8,3.22339888]
[1751270784115,1.712,2482.1,2481.8,3.22346683]
[1751270784416,1.712,2482.3,2482.1,3.22307054]
[1751270784622,1.712,2482.3,2482.0,3.2231432]
[1751270784925,1.712,2482.3,2482.1,3.22305547]
[1751270785127,0.8062,2482.4,2482.1,3.22305547]
[1751270785338,1.712,2482.5,2482.3,3.22273116]
[1751270785624,0.7995,2482.6,2482.3,3.22273116]
[1751270785795,2.5115,2482.6,2482.3,3.22273116]
[1751270786993,0.7995,2482.6,2482.3,3.22279173]
[1751270787399,2.5125,2482.6,2482.2,3.22288895]
[1751270787921,0.7995,2482.6,2482.2,3.22288895]
[1751270788120,2.5125,2482.6,2482.2,3.22288895]
[1751270788340,2.5125,2482.6,2482.1,3.22303619]
[1751270788500,2.5125,2482.6,2482.2,3.22294004]
[1751270790943,5.73494276,2482.6,2481.9,3.22333104]
[1751270791140,5.73494276,2482.6,2482.0,3.22311522]
[1751270791640,3.22257653,2482.5,2482.0,3.22311522]
[1751270791837,3.22297026,2482.2,2481.8,4.76]
[1751270792211,0.89573757,2482.5,2481.8,4.76]
[1751270792212,4.04768025,2482.1,2481.8,4.76]
[1751270792849,5.76068025,2482.1,2481.8,4.76]
[1751270792998,3.22333695,2481.9,2481.8,4.76]
[1751270793202,0.778,2481.9,2481.8,4.76]
[1751270793782,4.00133695,2481.9,2481.8,4.76]
[1751270794105,4.00133695,2481.9,2481.5,0.01]
[1751270794611,0.778,2481.9,2481.5,3.2337406]
[1751270794825,0.778,2481.9,2481.6,3.22364714]
[1751270795247,1.705,2481.9,2481.8,3.22346683]
[1751270795753,1.705,2482.1,2481.9,3.22327327]
[1751270798855,4.01552767,2482.0,2481.5,3.23378446]
[1751270799061,0.7923,2482.0,2481.5,3.23378446]
[1751270799964,4.01554071,2482.0,2481.5,3.23378446]
[1751270800671,0.7923,2482.0,2481.5,3.23378446]
[1751270801030,4.01552395,2482.0,2481.5,3.23378446]
[1751270801429,0.7923,2482.0,2481.5,3.23378446]
[1751270802172,0.7923,2482.0,2481.6,3.22372308]
[1751270803780,1.706,2481.9,2481.5,0.01]
[1751270803977,1.706,2481.9,2481.5,3.23378871]
[1751270805248,1.706,2481.9,2481.6,3.22370512]
[1751270806250,1.706,2481.9,2481.7,3.22359365]
[1751270806573,0.7923,2482.0,2481.7,3.22347814]
[1751270806737,1.706,2481.9,2481.7,3.22347814]
[1751270807338,0.7923,2482.0,2481.7,3.22347814]
[1751270807568,0.7923,2482.0,2481.5,0.01]
[1751270807770,1.706,2481.9,2481.8,3.22346623]
[1751270807970,1.706,2481.9,2481.7,3.22353366]
[1751270808674,1.706,2481.9,2481.8,3.22346326]
[1751270809040,2.4983,2482.0,2481.8,3.22346326]
[1751270809538,2.4983,2482.0,2481.7,3.22353252]
[1751270809960,0.7923,2482.0,2481.7,3.22353252]
[1751270810160,0.7923,2482.0,2481.5,0.01]
[1751270810161,1.706,2482.1,2481.8,3.22336018]
[1751270810675,1.706,2482.1,2481.6,3.22369126]
[1751270810676,0.02,2483.0,2482.9,3.22203874]
[1751270811039,0.02,2483.0,2482.8,3.22209481]
[1751270811672,0.02,2483.0,2482.6,3.22240737]
[1751270811673,0.02,2483.0,2482.6,3.22236183]
[1751270811841,0.02,2483.0,2482.7,3.22219892]
[1751270812045,0.02,2483.0,2482.7,3.22220744]
[1751270812948,0.02,2483.0,2482.8,3.22215633]
[1751270813469,0.02,2483.0,2482.7,3.22225955]
[1751270814076,0.02,2483.0,2482.6,3.22237948]
[1751270817083,0.02,2483.0,2482.9,3.77203874]
[1751270817282,0.02,2483.1,2483.0,3.22190898]
[1751270817662,0.02,2483.1,2483.0,3.77190898]
[1751270819382,0.02,2483.1,2483.0,13.77190898]
[1751270819589,0.30555224,2483.9,2483.5,3.22126031]
[1751270819785,0.00920001,2484.0,2483.8,43.77087124]
[1751270819952,0.00920001,2484.0,2483.9,43.77074157]
[1751270821271,1.797,2485.5,2484.1,43.77048226]
[1751270821475,1.797,2485.5,2484.1,13.77048226]
[1751270821655,1.797,2485.5,2484.1,45.56748226]
[1751270821981,5.01575265,2485.5,2484.1,34.39851826]
[1751270822179,0.7839,2485.3,2484.1,29.99538126]
[1751270822384,4.00283158,2485.3,2484.1,24.79350526]
[1751270822567,1.797,2485.0,2484.1,22.12917926]
[1751270822969,1.797,2485.0,2484.1,20.17772226]
[1751270823566,1.797,2485.0,2484.1,43.76054626]
[1751270823800,1.796,2485.0,2484.1,43.30124326]
[1751270823983,1.796,2485.1,2484.1,40.73400726]
[1751270824547,1.796,2485.1,2484.1,45.56748226]
[1751270824753,1.796,2485.1,2484.1,42.16030826]
[1751270824986,5.01520683,2485.1,2484.1,41.95057726]
[1751270825197,5.01520683,2485.1,2484.1,38.29768826]
[1751270825687,5.01520683,2485.1,2484.1,39.07357026]
[1751270826096,3.21920683,2485.1,2484.1,30.14743926]
[1751270826275,5.01520683,2485.1,2484.1,30.14743926]
[1751270826672,5.01520683,2485.1,2484.1,15.56748226]
[1751270827003,3.21932033,2485.0,2484.1,30.92577526]
[1751270827167,5.01522945,2485.1,2484.1,29.99077526]
[1751270827372,3.21934766,2485.0,2484.1,29.99077526]
[1751270827772,3.21934766,2485.0,2484.1,26.62813226]
[1751270827990,1.796,2485.1,2484.1,16.93928126]
[1751270828191,4.01393484,2484.8,2484.1,13.77048226]
[1751270828468,2.5903,2484.8,2484.1,17.73261826]
[1751270828671,0.7943,2484.8,2484.1,17.73261826]
[1751270830307,0.01,2485.2,2485.0,3.21920052]
[1751270830612,0.01,2485.2,2485.1,13.76918635]
[1751270832633,0.01,2485.2,2485.1,43.76918635]
[1751270832783,0.01,2485.2,2485.1,26.51072535]
[1751270833109,0.01,2485.2,2485.1,16.42828635]
[1751270833298,0.01,2485.2,2485.1,13.76918635]
[1751270834206,0.2198175,2485.7,2485.6,3.21853878]
[1751270834383,0.2198175,2485.7,2485.6,13.76853878]
[1751270834785,0.2198175,2485.7,2485.6,13.21853878]
[1751270835102,0.2198175,2485.7,2485.3,3.21884468]
[1751270835412,0.2198175,2485.7,2485.5,3.2185926]
[1751270835621,0.2198175,2485.7,2485.6,3.21853878]
[1751270835787,0.2198175,2485.7,2485.4,3.21877942]
[1751270835983,0.2198175,2485.7,2485.6,3.21853878]
[1751270836184,0.2198175,2485.7,2485.6,13.76853878]
[1751270836492,0.2198175,2485.7,2485.6,16.44953878]
[1751270836691,0.2198175,2485.7,2485.6,13.76853878]
[1751270837415,0.2198175,2485.7,2485.5,10.55]
[1751270837623,0.2198175,2485.7,2485.5,3.76866216]
[1751270837986,0.2198175,2485.7,2485.5,3.21866216]
[1751270838186,0.2198175,2485.7,2485.4,13.21873833]
[1751270838389,0.2198175,2485.7,2485.5,10.0]
[1751270838618,0.2298175,2485.7,2485.5,13.21865719]
[1751270839018,0.2298175,2485.7,2485.5,10.0]
[1751270839216,0.81,2485.6,2485.4,0.55]
[1751270839901,0.2298175,2485.7,2485.4,0.55]
[1751270840106,0.2298175,2485.7,2485.6,13.76853878]
[1751270840421,0.2298175,2485.7,2485.6,10.0]
[1751270840620,0.2298175,2485.7,2485.0,3.21929706]
[1751270840621,0.2298175,2485.7,2485.4,3.21872508]
[1751270840794,0.2298175,2485.7,2485.3,3.21887773]
[1751270841688,0.2298175,2485.7,2485.2,13.76899482]
[1751270841911,0.2298175,2485.7,2485.3,3.21890702]
[1751270842226,0.2298175,2485.7,2485.2,3.76902322]
[1751270842425,0.2298175,2485.7,2485.4,10.0]
[1751270842602,0.2298175,2485.7,2485.6,13.76853878]
[1751270844417,0.2298175,2485.7,2485.6,17.59029478]
[1751270845293,0.2298175,2485.7,2485.6,34.61044878]
[1751270845606,0.2298175,2485.7,2485.6,13.76853878]
[1751270845989,0.2298175,2485.7,2485.6,16.71281178]
[1751270846393,0.2298175,2485.7,2485.6,21.14024878]
[1751270847030,0.2298175,2485.7,2485.6,20.50683978]
[1751270847397,0.2298175,2485.7,2485.6,20.81895678]
[1751270847595,0.2298175,2485.7,2485.6,20.50595678]
[1751270847801,0.2298175,2485.7,2485.6,18.44995678]
[1751270848001,0.2298175,2485.7,2485.6,17.09167278]
[1751270848430,0.2298175,2485.7,2485.6,19.06335578]
[1751270848927,0.2298175,2485.7,2485.6,16.04546378]
[1751270849228,0.2298175,2485.7,2485.6,13.76853878]
[1751270851132,0.2298175,2485.7,2485.6,10.55]
[1751270851346,0.2298175,2485.7,2485.6,10.0]
[1751270851531,0.2298175,2485.7,2485.4,3.21877669]
[1751270851919,0.7932,2485.6,2485.5,10.0]
[1751270852113,0.7932,2485.6,2485.4,10.0]
[1751270852114,0.7932,2485.6,2485.3,3.21890394]
[1751270852705,0.7932,2485.6,2485.4,3.76877241]
[1751270853725,0.7932,2485.6,2485.5,3.21866827]
[1751270853931,0.7932,2485.6,2485.4,3.76874492]
[1751270854148,0.7932,2485.6,2485.5,3.21866827]
[1751270854442,0.2298175,2485.7,2485.5,3.21866827]
[1751270855039,0.2298175,2485.7,2485.4,0.55]
[1751270855215,0.2298175,2485.7,2485.5,3.21866324]
[1751270855416,0.2298175,2485.7,2485.4,0.55]
[1751270855417,0.2298175,2485.7,2485.4,3.76874249]
[1751270855843,0.2298175,2485.7,2485.5,3.21865289]
[1751270858155,0.2298175,2485.7,2485.5,3.21866827]
[1751270858342,0.2298175,2485.7,2485.6,3.21853878]
[1751270858641,0.2298175,2485.7,2485.4,3.76875419]
[1751270858642,0.2298175,2485.7,2485.5,3.2185927]
[1751270859234,0.2298175,2485.7,2485.6,3.21853878]
[1751270859942,0.2298175,2485.7,2485.4,3.76871892]
[1751270860148,0.2298175,2485.7,2485.3,3.76887075]
[1751270860938,0.2298175,2485.7,2485.4,3.21879377]
[1751270861114,0.2298175,2485.7,2485.3,3.76888065]
[1751270861311,0.7814,2485.6,2485.2,10.0]
[1751270861958,0.7814,2485.6,2485.2,13.21904288]
[1751270862255,3.99997631,2485.6,2485.2,0.55]
[1751270862414,0.7814,2485.6,2485.2,0.55]
[1751270862627,5.83197957,2485.6,2485.1,0.02]
[1751270862962,3.21905403,2485.3,2485.1,0.02]
[1751270863275,4.00685681,2485.2,2485.1,0.02]
[1751270865236,4.02415681,2485.2,2485.1,0.02]
[1751270865934,0.8051,2485.2,2485.1,0.02]
[1751270866134,2.6371,2485.2,2485.1,0.02]
[1751270867966,6.44175989,2485.2,2485.1,0.02]
[1751270868148,3.22270308,2485.2,2485.1,0.02]
[1751270868465,2.6371,2485.2,2485.1,0.02]
[1751270869767,0.8051,2485.2,2485.1,0.02]
[1751270869944,2.6371,2485.2,2485.1,0.02]
[1751270871265,2.6182,2485.4,2485.1,0.02]
[1751270871461,5.83701711,2485.4,2485.1,0.02]
[1751270872761,0.01,2485.2,2485.1,0.02]
[1751270874338,3.22905681,2485.2,2485.1,0.02]
[1751270875188,3.99365681,2485.2,2485.1,0.02]
[1751270878767,4.8981163,2485.2,2485.1,0.02]
[1751270880672,6.6951163,2485.2,2485.1,0.02]
[1751270886674,16.6951163,2485.2,2485.1,0.02]
[1751270887049,14.8981163,2485.2,2485.1,0.02]
[1751270887250,16.6951163,2485.2,2485.1,0.02]
[1751270890581,2.5716,2485.2,2485.1,0.02]
[1751270892892,5.79065681,2485.2,2485.1,0.02]
[1751270894789,13.99365681,2485.2,2485.1,0.02]
[1751270894968,15.79065681,2485.2,2485.1,0.02]
[1751270895165,13.99365681,2485.2,2485.1,0.02]
[1751270895370,17.51191713,2485.2,2485.1,0.02]
[1751270896790,15.71491713,2485.2,2485.1,0.02]
[1751270896978,17.51191713,2485.2,2485.1,0.02]
[1751270897886,15.71491713,2485.2,2485.1,0.02]
[1751270898091,17.51191713,2485.2,2485.1,0.02]
[1751270899392,17.88811998,2485.2,2485.1,0.02]
[1751270899773,16.09111998,2485.2,2485.1,0.02]
[1751270900093,17.88811998,2485.2,2485.1,0.02]
[1751270907026,18.85253848,2485.2,2485.1,0.02]
[1751270907519,14.58578635,2485.1,2485.0,0.02]
[1751270907729,18.13355619,2485.1,2485.0,0.02]
[1751270911737,18.13355619,2485.1,2485.0,0.02]
[1751270913701,18.13355619,2485.1,2484.2,0.02]
[1751270913702,3.220223,2484.3,2484.2,0.02]
[1751270913907,5.785223,2484.3,2484.2,0.02]
[1751270917436,4.988223,2484.3,2484.2,0.02]
[1751270920203,5.88637654,2484.3,2484.2,0.02]
[1751270920607,4.988223,2484.3,2484.2,0.02]
[1751270926850,6.18439459,2484.3,2484.2,0.02]
[1751270928545,16.18439459,2484.3,2484.2,0.02]
[1751270931248,14.41639459,2484.3,2484.2,0.02]
[1751270931546,16.18539459,2484.3,2484.2,0.02]
[1751270931752,18.12594529,2484.3,2484.2,0.02]
[1751270939759,5.36509459,2484.3,2484.2,0.02]
[1751270940077,1.769,2484.3,2484.2,0.02]
[1751270942156,3.21996528,2484.5,2484.2,0.02]
[1751270942376,3.220223,2484.3,2484.2,0.02]
[1751270942684,3.59649927,2484.3,2484.2,0.02]
[1751270942845,4.53201031,2484.3,2484.2,0.02]
[1751270945947,14.53201031,2484.3,2484.2,0.02]
[1751270946256,15.28941031,2484.3,2484.2,0.02]
[1751270947566,16.25279817,2484.3,2484.2,0.02]
[1751270952752,16.80279817,2484.3,2484.2,0.02]
[1751270953488,18.00539306,2484.3,2484.2,0.02]
[1751270955399,13.77035262,2484.2,2484.1,0.02]
[1751270955568,48.35481315,2484.2,2484.1,0.02]
[1751270956294,19.958273,2484.2,2484.1,0.02]
[1751270956472,13.77048226,2484.1,2484.0,0.02]
[1751270956789,45.93684639,2484.1,2484.0,0.02]
[1751270956994,49.95017063,2484.1,2484.0,0.02]
[1751270957293,51.55363048,2484.1,2484.0,0.02]
[1751270958259,51.85290448,2484.1,2484.0,0.02]
[1751270959490,20.24944463,2484.1,2484.0,0.02]
[1751270959671,21.99244463,2484.1,2484.0,0.02]
[1751270959869,21.61616836,2484.1,2484.0,0.02]
[1751270960295,22.81936504,2484.1,2484.0,0.02]
[1751270960677,21.07636504,2484.1,2484.0,0.02]
[1751270960877,22.81936504,2484.1,2484.0,0.02]
[1751270962997,20.76789436,2484.1,2484.0,0.02]
[1751270964702,19.94119436,2484.1,2484.0,0.02]
[1751270965017,9.94119436,2484.1,2484.0,0.02]